fUST/lending_fUST_20251224
["ID","MTS","AMOUNT","RATE_DAILY","PERIOD"]
[399603432,1766537440846,-500.0,0.00010379,2]
[399603434,1766537440855,-324.83,0.000104,2]
[399603435,1766537440865,-154.3,0.000104,2]
[399603437,1766537440874,-500.0,0.00010411,2]
[399603439,1766537440884,-1000.0,0.00010484,2]
[399603441,1766537440894,-1000.0,0.00010484,2]
[399603443,1766537440903,-154.3,0.000105,2]
[399603445,1766537440913,-324.83,0.000106,2]
[399603447,1766537440923,-154.3,0.000106,2]
[399603449,1766537440932,-3303.03,0.00010613,2]
[399603451,1766537440943,-500.0,0.00010685,2]
[399603453,1766537440953,-2700.0,0.00010702,2]
[399603455,1766537440963,-740.38982778,0.00010703,2]
[399603457,1766537440972,-160.0,0.00010764,5]
[399603459,1766537440982,-3956.67433912,0.00010784,2]
[399603461,1766537440992,-324.83,0.000108,2]
[399603462,1766537441001,-154.3,0.000108,2]
[399603465,1766537441012,-1266.16650628,0.00010822,15]
[399603466,1766537441022,-154.3,0.000109,2]
[399603469,1766537441032,-340.05279628,0.00010958,12]
[399603470,1766537441042,-500.0,0.00010959,2]
[399603473,1766537441053,-999.0,0.00010959,2]
[399603475,1766537441063,-154.59441,0.00010959,2]
[399603477,1766537441073,-500.0,0.00010959,2]
[399603478,1766537441082,-627.89441356,0.00010959,2]
[399603480,1766537441092,-3670.03,0.00010979,2]
[399603482,1766537441102,-324.83,0.00011,2]
[399603484,1766537441113,-151.0,0.00011,2]
[399603486,1766537441122,-151.0,0.00011,2]
[399603488,1766537441133,-151.0,0.00011,2]
[399603490,1766537441142,-154.3,0.00011,2]
[399603492,1766537441152,-500.0,0.00011003,2]
[399603494,1766537441163,-394.95523253,0.00011068,2]
[399603496,1766537441172,-154.3,0.000111,2]
[399603498,1766537441181,-500.0,0.00011178,2]
[399603500,1766537441192,-453.93953091,0.00011179,2]
[399603502,1766537441201,-2700.0,0.00011211,2]
[399603504,1766537441211,-500.0,0.00011217,2]
[399603506,1766537441221,-500.0,0.00011233,2]
[399603507,1766537441230,-767.7842514,0.00011251,2]
[399603509,1766537441240,-154.3,0.000113,2]
[399603511,1766537441250,-394.95523253,0.00011323,2]
[399603513,1766537441260,-2700.0,0.00011338,2]
[399603515,1766537441269,-600.0,0.00011385,2]
[399603517,1766537441279,-1266.16650628,0.00011391,16]
[399603519,1766537441294,-154.3,0.000114,2]
[399603521,1766537441303,-2700.0,0.00011435,2]
[399603523,1766537441313,-500.0,0.00011439,2]
[399603525,1766537441322,-154.3,0.000115,2]
[399603527,1766537441333,-600.0,0.00011503,2]
[399603529,1766537441343,-500.0,0.00011507,2]
[399603531,1766537441353,-1000.0,0.00011532,2]
[399603533,1766537441363,-1000.0,0.00011532,2]
[399603534,1766537441372,-579.0,0.00011532,2]
[399603536,1766537441382,-3956.67433912,0.0001157,2]
[399603538,1766537441392,-154.3,0.000116,2]
[399603540,1766537441402,-600.0,0.00011622,2]
[399603542,1766537441411,-600.0,0.0001174,2]
[399603544,1766537441421,-500.0,0.00011781,2]
[399603546,1766537441431,-431.57685952,0.00011799,2]
[399603548,1766537441440,-159.6350092,0.000118,2]
[399603550,1766537441450,-154.3,0.000118,2]
[399603552,1766537441460,-500.0,0.00011805,2]
[399603554,1766537441471,-3956.67433912,0.00011831,2]
[399603556,1766537441481,-465.447486,0.00011859,2]
[399603558,1766537441492,-465.447486,0.00011859,2]
[399603560,1766537441502,-465.447486,0.00011859,2]
[399603562,1766537441512,-465.447486,0.00011859,2]
[399603564,1766537441522,-600.0,0.00011859,2]
[399603566,1766537441531,-154.3,0.000119,2]
[399603568,1766537441541,-235.00767221,0.00011916,2]
[399603570,1766537441551,-1266.16650628,0.00011959,18]
[399603572,1766537441561,-600.0,0.00011978,2]
[399603574,1766537441570,-312.641676,0.00012,2]
[399603576,1766537441580,-312.641676,0.00012,2]
[399603578,1766537441589,-312.641676,0.00012,2]
[399603579,1766537441599,-312.641676,0.00012,2]
[399603581,1766537441608,-5368.0,0.00012,2]
[399603583,1766537441618,-154.3,0.00012,2]
[399603586,1766537441632,-2700.0,0.00012026,2]
[399603588,1766537441647,-500.0,0.00012055,2]
[399603590,1766537441664,-600.0,0.00012096,2]
[399603593,1766537441679,-2700.0,0.00012162,2]
[399603595,1766537441693,-600.0,0.00012215,2]
[399603597,1766537441704,-716.57251831,0.00012228,2]
[399603600,1766537441719,-395.28362689,0.00012229,2]
[399603602,1766537441733,-250.0,0.000123,2]
[399603605,1766537441747,-500.0,0.00012329,2]
[399603607,1766537441762,-10922.11,0.00012329,2]
[399603610,1766537441776,-12871.06,0.00012329,2]
[399603612,1766537441790,-10857.79,0.00012329,2]
[399603614,1766537441805,-9048.15,0.00012329,2]
[399603617,1766537441821,-7540.13,0.00012329,2]
[399603619,1766537441835,-6283.44,0.00012329,2]
[399603622,1766537441848,-5236.2,0.00012329,2]
[399603624,1766537441862,-4363.5,0.00012329,2]
[399603626,1766537441875,-3636.25,0.00012329,2]
[399603628,1766537441888,-3030.21,0.00012329,2]
[399603631,1766537441903,-2525.17,0.00012329,2]
[399603634,1766537441919,-2104.31,0.00012329,2]
[399603636,1766537441932,-1753.59,0.00012329,2]
[399603638,1766537441944,-1461.33,0.00012329,2]
[399603640,1766537441955,-1217.77,0.00012329,2]
[399603642,1766537441968,-1014.81,0.00012329,2]
[399603644,1766537441980,-845.68,0.00012329,2]
[399603647,1766537441995,-704.73,0.00012329,2]
[399603649,1766537442009,-587.28,0.00012329,2]
[399603652,1766537442023,-489.4,0.00012329,2]
[399603654,1766537442037,-407.83,0.00012329,2]
[399603656,1766537442051,-339.86,0.00012329,2]
[399603659,1766537442066,-283.21,0.00012329,2]
[399603661,1766537442082,-236.01,0.00012329,2]
[399603663,1766537442095,-196.68,0.00012329,2]
[399603666,1766537442108,-163.9,0.00012329,2]
[399603668,1766537442119,-819.51,0.00012329,2]
[399603670,1766537442136,-465.447486,0.00012329,2]
[399603672,1766537442149,-465.447486,0.00012329,2]
[399603674,1766537442166,-465.447486,0.00012329,2]
[399603677,1766537442180,-465.447486,0.00012329,2]
[399603679,1766537442193,-179.461996,0.00012329,2]
[399603681,1766537442203,-151.0,0.00012329,2]
[399603683,1766537442217,-179.461996,0.00012329,2]
[399603685,1766537442229,-179.461996,0.00012329,2]
[399603688,1766537442244,-179.461996,0.00012329,2]
[399603690,1766537442256,-500.0,0.0001233,2]
[399603692,1766537442268,-600.0,0.00012333,2]
[399603693,1766537442279,-600.0,0.00012356,2]
[399603695,1766537442296,-2700.0,0.00012383,2]
[399603697,1766537442309,-1136.83144166,0.00012452,2]
[399603698,1766537442322,-1266.16650628,0.00012528,19]
[399603700,1766537442336,-500.0,0.00012553,2]
[399603701,1766537442348,-500.0,0.00012603,2]
[399603702,1766537442362,-2700.0,0.00012616,2]
[399603703,1766537442375,-1000.0,0.00012685,2]
[399603704,1766537442388,-1000.0,0.00012685,2]
[399603705,1766537442401,-1000.0,0.00012685,2]
[399603706,1766537442413,-312.641676,0.00012685,2]
[399603707,1766537442426,-312.641676,0.00012685,2]
[399603708,1766537442438,-312.641676,0.00012685,2]
[399603709,1766537442457,-312.641676,0.00012685,2]
[399603710,1766537442470,-289.92081285,0.00012739,2]
[399603711,1766537442482,-1030422.23095691,0.0001287,2]
[399603712,1766537442501,-23590.51376869,0.0001287,2]
[399603713,1766537442887,-3e-08,0.0001287,2]
[399603739,1766537650360,5000.0,5.165e-05,2]
[399603740,1766537658741,5000.0,5.165e-05,2]
[399603885,1766537990077,6258.0,5.011e-05,2]
[399603886,1766538014194,1141.70295581,5.011e-05,2]
[399603890,1766538066968,2600.30704419,5.011e-05,2]
[399603891,1766538066995,2399.69295581,5.011e-05,2]
[399603893,1766538089872,5000.0,5.011e-05,2]
[399603896,1766538115831,2600.31704419,5.011e-05,2]
[399603897,1766538115854,2399.68295581,5.011e-05,2]
[399603899,1766538138697,5000.0,5.011e-05,2]
[399603900,1766538161503,2600.32704419,5.011e-05,2]
[399603901,1766538161528,2399.67295581,5.011e-05,2]
[399603902,1766538184860,5000.0,5.011e-05,2]
[399603903,1766538207693,2600.33704419,5.011e-05,2]
[399603904,1766538207717,2399.66295581,5.011e-05,2]
[399603905,1766538231871,5000.0,5.011e-05,2]
[399603907,1766538255372,5000.0,5.037e-05,2]
[399603908,1766538279012,5000.0,5.037e-05,2]
[399603909,1766538302520,0.01,5.037e-05,2]
[399603910,1766538302557,4999.99,5.037e-05,2]
[399603912,1766538325270,5000.0,5.037e-05,2]
[399603913,1766538329548,204.551958,7.254e-05,61]
[399603914,1766538329749,204.551958,7.254e-05,120]
[399603915,1766538348227,0.02,5.037e-05,2]
[399603916,1766538348262,4999.98,5.037e-05,2]
[399603917,1766538371748,5000.0,5.037e-05,2]
[399603920,1766538394668,0.03,5.037e-05,2]
[399603921,1766538394692,4999.97,5.037e-05,2]
[399603922,1766538418611,5000.0,5.037e-05,2]
[399603924,1766538441391,0.04,5.037e-05,2]
[399603925,1766538441414,4999.96,5.037e-05,2]
[399603926,1766538464688,5000.0,5.037e-05,2]
[399603927,1766538487998,0.05,5.037e-05,2]
[399603928,1766538488023,4999.95,5.037e-05,2]
[399603944,1766538511513,5000.0,5.037e-05,2]
[399603972,1766538535469,0.06,5.037e-05,2]
[399603973,1766538535493,4999.94,5.037e-05,2]
[399603978,1766538558984,5000.0,5.065e-05,2]
[399603980,1766538582555,5000.0,5.065e-05,2]
[399603981,1766538605466,0.01,5.065e-05,2]
[399603982,1766538605495,4999.99,5.065e-05,2]
[399603983,1766538624294,-1200.0,5.074e-05,2]
[399603984,1766538628717,5000.0,5.075e-05,2]
[399604012,1766538632408,-275.28991896,5.075e-05,2]
[399604018,1766538632464,-719.30166783,5.075e-05,2]
[399604020,1766538632477,-702.29260338,5.075e-05,2]
[399604025,1766538632509,-8513.60197778,5.075e-05,2]
[399604148,1766538640690,-1499.98806,5.075e-05,2]
[399604149,1766538640704,-1062.49400241,5.075e-05,2]
[399604182,1766538646623,-1961.41760345,5.075e-05,2]
[399604187,1766538647075,-8000.0,5.075e-05,2]
[399604188,1766538647089,-7202.5838877,5.075e-05,2]
[399604189,1766538647100,-270.09430703,5.093e-05,2]
[399604190,1766538647111,-500.0,5.174e-05,2]
[399604191,1766538647122,-610.31363399,5.174e-05,2]
[399604192,1766538647133,-341.73174734,5.277e-05,2]
[399604193,1766538647145,-300.0,5.278e-05,2]
[399604194,1766538647156,-300.0,5.278e-05,2]
[399604195,1766538647168,-300.0,5.278e-05,2]
[399604196,1766538647180,-300.0,5.278e-05,2]
[399604197,1766538647191,-300.0,5.278e-05,2]
[399604198,1766538647203,-300.0,5.278e-05,2]
[399604199,1766538647214,-300.0,5.278e-05,2]
[399604200,1766538647226,-300.0,5.278e-05,2]
[399604201,1766538647237,-300.0,5.278e-05,2]
[399604202,1766538647249,-300.0,5.278e-05,2]
[399604203,1766538647261,-300.0,5.278e-05,2]
[399604204,1766538647272,-300.0,5.278e-05,2]
[399604205,1766538647284,-300.0,5.278e-05,2]
[399604206,1766538647296,-300.0,5.278e-05,2]
[399604207,1766538647846,-300.0,5.278e-05,2]
[399604208,1766538647884,-600.0,5.278e-05,2]
[399604209,1766538647919,-720.0,5.806e-05,2]
[399604210,1766538647932,-864.0,6.386e-05,2]
[399604211,1766538647942,-250.0,6.706e-05,2]
[399604212,1766538647951,-1363.0,6.877e-05,2]
[399604213,1766538647961,-604.27642395,6.877e-05,2]
[399604228,1766538776950,2600.01,4.975e-05,2]
[399604229,1766538776980,10000.01,4.975e-05,2]
[399604230,1766538777007,10000.01,4.975e-05,2]
[399604231,1766538777033,10000.01,4.975e-05,2]
[399604232,1766538777059,10000.01,4.975e-05,2]
[399604233,1766538777084,10000.01,4.975e-05,2]
[399604234,1766538777109,10000.01,4.975e-05,2]
[399604235,1766538777134,10000.01,4.975e-05,2]
[399604236,1766538777159,10000.01,4.975e-05,2]
[399604237,1766538777185,10000.01,4.975e-05,2]
[399604252,1766538786652,-930.03672644,4.975e-05,2]
[399604253,1766538787993,-10000.01,4.975e-05,2]
[399604255,1766538789055,-10000.01,4.975e-05,2]
[399604256,1766538789076,-10000.01,4.975e-05,2]
[399604257,1766538789101,-10000.01,4.975e-05,2]
[399604258,1766538789120,-10000.01,4.975e-05,2]
[399604259,1766538789144,-10000.01,4.975e-05,2]
[399604260,1766538789256,-10000.01,4.975e-05,2]
[399604261,1766538789470,-10000.01,4.975e-05,2]
[399604262,1766538789604,-10000.01,4.975e-05,2]
[399604263,1766538789701,-10000.01,4.975e-05,2]
[399604265,1766538790177,-765.85118794,4.975e-05,2]
[399604268,1766538793767,-200.0,4.975e-05,2]
[399604269,1766538793884,-10000.01,4.975e-05,2]
[399604270,1766538794103,-10000.01,4.975e-05,2]
[399604272,1766538794417,-10000.01,4.975e-05,2]
[399604273,1766538794650,-10000.01,4.975e-05,2]
[399604274,1766538794866,-10000.01,4.975e-05,2]
[399604275,1766538795058,-10000.01,4.975e-05,2]
[399604276,1766538795472,-229.07904625,4.975e-05,2]
[399604278,1766538795598,-10000.01,4.975e-05,2]
[399604279,1766538795812,-10000.01,4.975e-05,2]
[399604280,1766538796059,-10000.01,4.975e-05,2]
[399604281,1766538796303,-10000.01,4.975e-05,2]
[399604283,1766538798525,-320.59939884,4.975e-05,2]
[399604285,1766538800181,-236.76731322,4.975e-05,2]
[399604287,1766538802120,-464.80215162,4.926e-05,2]
[399604288,1766538803984,-811.93669324,4.926e-05,2]
[399604289,1766538804031,-8376.13661352,4.975e-05,2]
[399604290,1766538804103,-10000.01,4.975e-05,2]
[399604291,1766538804203,-10000.01,4.975e-05,2]
[399604293,1766538804338,-10000.01,4.975e-05,2]
[399604294,1766538804446,-10000.01,4.975e-05,2]
[399604295,1766538804588,-10000.01,4.975e-05,2]
[399604296,1766538804722,-10000.01,4.975e-05,2]
[399604297,1766538804854,-10000.01,4.975e-05,2]
[399604298,1766538804947,-10000.01,4.975e-05,2]
[399604299,1766538805238,-10000.01,4.975e-05,2]
[399604300,1766538805735,-500.0,4.975e-05,2]
[399604301,1766538807758,-444.43976229,4.975e-05,2]
[399604303,1766538810223,-10000.01,4.975e-05,2]
[399604304,1766538810250,-10000.01,4.975e-05,2]
[399604305,1766538810383,-10000.01,4.975e-05,2]
[399604306,1766538810484,-10000.01,4.975e-05,2]
[399604308,1766538810578,-10000.01,4.975e-05,2]
[399604309,1766538810746,-10000.01,4.975e-05,2]
[399604310,1766538810865,-10000.01,4.975e-05,2]
[399604311,1766538810970,-10000.01,4.975e-05,2]
[399604312,1766538811100,-10000.01,4.975e-05,2]
[399604313,1766538811218,-10000.01,4.975e-05,2]
[399604314,1766538812039,-193.6769582,4.975e-05,2]
[399604316,1766538814165,-176.58112331,4.975e-05,2]
[399604318,1766538815569,-300.0,4.975e-05,2]
[399604321,1766538819651,-348.30389427,4.975e-05,2]
[399604324,1766538822576,-197.12675577,4.975e-05,2]
[399604325,1766538825207,-347.0961284,4.975e-05,2]
[399604327,1766538827221,-217.16260715,4.975e-05,2]
[399604329,1766538831021,-251.30459132,4.975e-05,2]
[399604332,1766538832480,-350.8925496,4.975e-05,2]
[399604334,1766538834363,-343.58814051,4.975e-05,2]
[399604336,1766538837955,-299.4351489,4.975e-05,2]
[399604337,1766538841148,-199.02803357,4.975e-05,2]
[399604344,1766538843742,-446.14359852,4.975e-05,2]
[399604345,1766538846183,-290.05289845,4.975e-05,2]
[399604346,1766538847606,-153.85640148,4.975e-05,2]
[399604351,1766538849096,-436.98992256,4.975e-05,2]
[399604352,1766538852234,-184.68304335,4.975e-05,2]
[399604353,1766538854816,-155.2959668,4.926e-05,2]
[399604354,1766538857277,-266.29517752,4.926e-05,2]
[399604355,1766538859427,-238.55678043,4.926e-05,2]
[399604356,1766538862513,-192.70074819,4.926e-05,2]
[399604357,1766538864019,-228.77305958,4.926e-05,2]
[399604358,1766538867052,-286.77014095,4.926e-05,2]
[399604359,1766538869251,-471.05942776,4.926e-05,2]
[399604360,1766538871303,-242.82769462,4.877e-05,2]
[399604361,1766538873451,-793.38581273,4.877e-05,2]
[399604362,1766538874895,-109.06467413,4.877e-05,2]
[399604363,1766538874920,-279.89688796,4.926e-05,2]
[399604364,1766538877531,-336.04128795,4.926e-05,2]
[399604365,1766538881268,-582.71037272,4.926e-05,2]
[399604366,1766538883295,-366.89231098,4.926e-05,2]
[399604367,1766538885718,-183.22191816,4.926e-05,2]
[399604368,1766538888399,-240.03317121,4.926e-05,2]
[399604369,1766538889912,-224.60521826,4.926e-05,2]
[399604370,1766538895167,-417.75946656,4.926e-05,2]
[399604372,1766538903933,-370.08682874,4.926e-05,2]
[399604373,1766538906042,-159.30123623,4.926e-05,2]
[399604374,1766538906067,-66.82732064,4.951e-05,2]
[399604375,1766538908152,-238.87618355,4.951e-05,2]
[399604376,1766538908176,-8.61080981,4.974e-05,2]
[399604377,1766538910021,-156.80490251,4.974e-05,2]
[399604378,1766538925823,-272.31389483,4.875e-05,2]
[399604379,1766538929042,-315.30608388,4.875e-05,2]
[399604380,1766538931921,-252.35879506,4.875e-05,2]
[399604381,1766538934496,-263.79218621,4.875e-05,2]
[399604382,1766538935736,150.0,9.971e-05,30]
[399604383,1766538936146,217.65,0.00010878,30]
[399604384,1766538936493,-184.55368981,4.875e-05,2]
[399604385,1766538936524,326.48,0.00011784,30]
[399604386,1766538939487,-153.28050547,4.875e-05,2]
[399604387,1766538941789,-307.09836629,4.875e-05,2]
[399604388,1766538943263,-270.62349652,4.875e-05,2]
[399604389,1766538945287,-679.40760078,4.875e-05,2]
[399604390,1766538946747,-496.66397761,4.875e-05,2]
[399604391,1766538948985,-245.32991224,4.875e-05,2]
[399604392,1766538952485,-326.2278542,4.875e-05,2]
[399604393,1766538955143,-202.94392973,4.875e-05,2]
[399604394,1766538956898,-403.71627291,4.875e-05,2]
[399604395,1766538959499,-626.38343446,4.875e-05,2]
[399604396,1766538959524,-15.0511754,4.924e-05,2]
[399604397,1766538970180,-204.87601877,4.875e-05,2]
[399604398,1766538971631,-172.878,4.875e-05,2]
[399604399,1766538975833,-686.32960048,4.875e-05,2]
[399604401,1766538977925,-250.0,4.875e-05,2]
[399604402,1766538979400,-565.21,4.875e-05,2]
[399604403,1766538980830,-243.54589971,4.875e-05,2]
[399604404,1766538984022,-214.15,4.875e-05,2]
[399604405,1766538989646,-307.23,4.875e-05,2]
[399604406,1766538992619,-293.31108413,4.875e-05,2]
[399604407,1766538994768,-964.51860206,4.875e-05,2]
[399604408,1766538997220,-318.24977511,4.875e-05,2]
[399604409,1766539000427,-403.70845104,4.875e-05,2]
[399604410,1766539002444,-182.15375553,4.875e-05,2]
[399604411,1766539004400,-193.83881317,4.875e-05,2]
[399604412,1766539004423,-49.19625167,4.924e-05,2]
[399604413,1766539015276,-195.9353418,4.875e-05,2]
[399604414,1766539019508,-387.27626849,4.875e-05,2]
[399604415,1766539023230,-500.0,4.875e-05,2]
[399604416,1766539027003,-157.28195818,4.875e-05,2]
[399604417,1766539029349,-209.28280505,4.875e-05,2]
[399604418,1766539031795,-362.31422729,4.875e-05,2]
[399604419,1766539035445,-259.91451511,4.875e-05,2]
[399604420,1766539038034,-250.0,4.875e-05,2]
[399604421,1766539040135,-330.23063639,4.875e-05,2]
[399604422,1766539042340,-398.01602104,4.875e-05,2]
[399604423,1766539044370,-243.4326106,4.875e-05,2]
[399604424,1766539046331,-289.39420082,4.875e-05,2]
[399604426,1766539047793,-403.76936361,4.875e-05,2]
[399604427,1766539049869,-517.12768094,4.875e-05,2]
[399604428,1766539051313,-232.26633695,4.875e-05,2]
[399604429,1766539054515,-243.15425436,4.875e-05,2]
[399604433,1766539101013,-20.60377937,4.875e-05,2]
[399604434,1766539101044,-92.55747544,4.924e-05,2]
[399604435,1766539103063,5000.0,4.826e-05,2]
[399604438,1766539118774,3690.24408551,4.965e-05,2]
[399604439,1766539126507,1083.44340487,4.965e-05,2]
[399604440,1766539126531,3916.55659513,4.965e-05,2]
[399604441,1766539150330,5000.0,4.965e-05,2]
[399604442,1766539173140,5000.0,4.965e-05,2]
[399604445,1766539197184,5000.0,4.965e-05,2]
[399604446,1766539220513,0.01,4.965e-05,2]
[399604447,1766539220536,4999.99,4.965e-05,2]
[399604448,1766539243269,5000.0,4.965e-05,2]
[399604450,1766539266275,0.02,4.965e-05,2]
[399604451,1766539266300,4999.98,4.965e-05,2]
[399604452,1766539290048,5000.0,4.965e-05,2]
[399604454,1766539298217,150.0,9.317e-05,30]
[399604455,1766539298602,210.08,0.00010164,30]
[399604456,1766539298997,315.12,0.0001101,30]
[399604457,1766539299390,420.16,0.00011857,30]
[399604460,1766539312614,0.03,4.965e-05,2]
[399604461,1766539312638,4999.97,4.965e-05,2]
[399604463,1766539334667,5000.04,4.163e-05,2]
[399604464,1766539334691,10000.01,4.163e-05,2]
[399604465,1766539334714,10000.01,4.163e-05,2]
[399604466,1766539338934,-156.57825537,4.163e-05,2]
[399604467,1766539340723,-156.09215701,4.163e-05,2]
[399604468,1766539342730,-313.91690773,4.163e-05,2]
[399604469,1766539344809,-230.48331407,4.163e-05,2]
[399604470,1766539346244,-621.75048689,4.163e-05,2]
[399604472,1766539349116,-226.03353956,4.163e-05,2]
[399604473,1766539351145,-197.09218593,4.163e-05,2]
[399604474,1766539354399,-236.20781382,4.163e-05,2]
[399604475,1766539357472,-278.08591794,4.163e-05,2]
[399604476,1766539358963,-335.2996606,4.163e-05,2]
[399604477,1766539361987,-180.59410517,4.163e-05,2]
[399604480,1766539366226,-252.64548378,4.163e-05,2]
[399604481,1766539369618,-251.26341123,4.163e-05,2]
[399604482,1766539371440,-448.48447247,4.163e-05,2]
[399604483,1766539374132,-211.31776359,4.163e-05,2]
[399604484,1766539376627,-183.49966263,4.163e-05,2]
[399604485,1766539379989,-176.78431186,4.163e-05,2]
[399604486,1766539383661,-300.0,4.162e-05,2]
[399604487,1766539383685,-382.26511397,4.163e-05,2]
[399604488,1766539385145,-737.0287028,4.163e-05,2]
[399604489,1766539387790,-300.0,4.163e-05,2]
[399604490,1766539389194,-453.10035493,4.163e-05,2]
[399604491,1766539391055,-199.93475873,4.163e-05,2]
[399604492,1766539392506,-300.0,4.163e-05,2]
[399604493,1766539397132,-613.72974229,4.163e-05,2]
[399604500,1766539398603,-300.0,4.163e-05,2]
[399604503,1766539402842,-288.01382941,4.163e-05,2]
[399604506,1766539406113,-666.0,4.163e-05,2]
[399604509,1766539409264,-292.39421842,4.163e-05,2]
[399604510,1766539410656,-496.10287113,4.163e-05,2]
[399604512,1766539412565,-170.28784906,4.163e-05,2]
[399604515,1766539415598,-298.32210853,4.163e-05,2]
[399604516,1766539417598,-377.26215456,4.122e-05,2]
[399604518,1766539421098,-379.78237575,4.122e-05,2]
[399604520,1766539423341,-169.5106173,4.122e-05,2]
[399604522,1766539425409,-275.18842409,4.122e-05,2]
[399604523,1766539425435,-9.20208126,4.163e-05,2]
[399604524,1766539426900,-245.96685961,4.163e-05,2]
[399604525,1766539428464,-287.04156794,4.163e-05,2]
[399604529,1766539432706,-385.76599839,4.163e-05,2]
[399604530,1766539435354,-349.60434305,4.163e-05,2]
[399604532,1766539436963,-168.73784544,4.163e-05,2]
[399604533,1766539439422,-176.18888576,4.163e-05,2]
[399604535,1766539441679,-404.72993837,4.163e-05,2]
[399604536,1766539443324,-304.62308825,4.163e-05,2]
[399604539,1766539444772,-298.31154285,4.163e-05,2]
[399604542,1766539447374,-250.28111604,4.163e-05,2]
[399604545,1766539449865,-246.71170381,4.163e-05,2]
[399604550,1766539453387,-347.2075639,4.163e-05,2]
[399604553,1766539457232,-246.71556781,4.163e-05,2]
[399604559,1766539458682,-318.18380445,4.163e-05,2]
[399604560,1766539460753,-217.45762535,4.163e-05,2]
[399604580,1766539463406,-169.9057501,1.956e-05,2]
[399604581,1766539463437,-51.09781599,4.163e-05,2]
[399604583,1766539466306,-703.47921399,4.163e-05,2]
[399604584,1766539467830,-450.04624967,4.163e-05,2]
[399604586,1766539469884,-238.01316205,4.163e-05,2]
[399604587,1766539472306,-184.68968083,4.163e-05,2]
[399604589,1766539474324,-317.24804787,4.163e-05,2]
[399604591,1766539475823,-142.7577672,4.163e-05,2]
[399604592,1766539475852,-39.49906025,4.245e-05,2]
[399604594,1766539478945,-300.0,4.245e-05,2]
[399604596,1766539481706,-289.10183338,4.245e-05,2]
[399604597,1766539483329,-571.39910637,4.245e-05,2]
[399604598,1766539483351,-300.0,4.245e-05,2]
[399604599,1766539483371,-300.0,4.245e-05,2]
[399604600,1766539483392,-300.0,4.246e-05,2]
[399604601,1766539483411,-300.0,4.246e-05,2]
[399604602,1766539483431,-300.0,4.246e-05,2]
[399604603,1766539483449,-300.0,4.246e-05,2]
[399604604,1766539483469,-300.0,4.246e-05,2]
[399604605,1766539483488,-300.0,4.246e-05,2]
[399604606,1766539483507,-300.0,4.246e-05,2]
[399604607,1766539483527,-300.0,4.246e-05,2]
[399604608,1766539483546,-300.0,4.246e-05,2]
[399604609,1766539483566,-300.0,4.246e-05,2]
[399604610,1766539483586,-11.69478399,4.246e-05,2]
[399604611,1766539484834,-288.30521601,4.246e-05,2]
[399604612,1766539484860,-300.0,4.246e-05,2]
[399604613,1766539484883,-300.0,4.246e-05,2]
[399604614,1766539484908,-249.51067028,4.246e-05,2]
[399604615,1766539486280,-50.48932972,4.246e-05,2]
[399604616,1766539486306,-206.69089202,4.246e-05,2]
[399604618,1766539487716,-93.30910798,4.246e-05,2]
[399604619,1766539487740,-344.93927386,4.669e-05,2]
[399604622,1766539491902,-274.63035213,4.669e-05,2]
[399604626,1766539494526,-354.43037401,4.669e-05,2]
[399604627,1766539494551,-97.0432799,4.669e-05,2]
[399604760,1766539748820,169.72,0.000145,60]
[399604776,1766539779649,-5000.0,4.87e-05,2]
[399604778,1766539783548,0.01,4.86e-05,2]
[399604779,1766539783581,4999.99,4.86e-05,2]
[399604801,1766539806056,5000.0,4.87e-05,2]
[399604807,1766539811715,-300.0,4.874e-05,2]
[399604808,1766539811751,-1200.0,4.874e-05,2]
[399604821,1766539822041,-8309.80591449,4.875e-05,2]
[399604823,1766539822398,-10000.01,4.875e-05,2]
[399604826,1766539822711,-10000.01,4.875e-05,2]
[399604828,1766539822986,-10000.01,4.875e-05,2]
[399604830,1766539823248,-10000.01,4.875e-05,2]
[399604832,1766539823509,-10000.01,4.875e-05,2]
[399604834,1766539823734,-10000.01,4.875e-05,2]
[399604835,1766539823998,-10000.01,4.875e-05,2]
[399604839,1766539824300,-10000.01,4.875e-05,2]